[Event "Championnat du monde jeunes U12"]
[Date "2024.11.23"]
[White "Kuandykuly, Danis"]
[Black "Tatvidze, Davit"]
[WhiteElo "2199"]
[BlackElo "2024"]
[Round "8.13"]
[Result "1-0"]
[TimeControl "5400+30"]

1. e4 {[%clk 1:28:08]} 1... c5 {[%clk 1:30:51]} 2. Nf3 {[%clk 1:28:30]} 2... Nc6
{[%clk 1:31:18]} 3. d4 {[%clk 1:28:52]} 3... cxd4 {[%clk 1:31:44]} 4. Nxd4
{[%clk 1:29:19]} 4... Nf6 {[%clk 1:32:07]} 5. Nc3 {[%clk 1:29:31]} 5... e5
{[%clk 1:32:30]} 6. Ndb5 {[%clk 1:29:43]} 6... d6 {[%clk 1:32:45]} 7. Bg5 {[%clk
1:28:12]} 7... a6 {[%clk 1:32:56]} 8. Na3 {[%clk 1:28:36]} 8... b5 {[%clk
1:32:59]} 9. Nd5 {[%clk 1:28:10]} 9... Be7 {[%clk 1:33:22]} 10. Bxf6 {[%clk
1:28:34]} 10... Bxf6 {[%clk 1:33:49]} 11. c3 {[%clk 1:28:14]} 11... O-O {[%clk
1:33:30]} 12. Nc2 {[%clk 1:28:36]} 12... Rb8 {[%clk 1:25:29]} 13. h4 {[%clk
1:26:59]} 13... Ne7 {[%clk 1:01:48]} 14. Nce3 {[%clk 1:16:47]} 14... Nxd5 {[%clk
0:53:13]} 15. Nxd5 {[%clk 1:17:02]} 15... Be6 {[%clk 0:47:47]} 16. g3 {[%clk
1:11:54]} 16... Qd7 {[%clk 0:28:35]} 17. Bg2 {[%clk 1:07:19]} 17... Bd8 {[%clk
0:28:22]} 18. O-O {[%clk 1:04:01]} 18... Bb6 {[%clk 0:27:00]} 19. Qd3 {[%clk
1:01:45]} 19... Bc5 {[%clk 0:25:01]} 20. b4 {[%clk 0:58:07]} 20... Ba7 {[%clk
0:18:25]} 21. a4 {[%clk 0:55:13]} 21... Kh8 {[%clk 0:11:06]} 22. axb5 {[%clk
0:55:24]} 22... axb5 {[%clk 0:10:56]} 23. Ra6 {[%clk 0:32:48]} 23... f5 {[%clk
0:08:42]} 24. Bh3 {[%clk 0:31:30]} 24... Qb7 {[%clk 0:07:36]} 25. Rxa7 {[%clk
0:26:42]} 25... Qxa7 {[%clk 0:07:56]} 26. Bxf5 {[%clk 0:24:45]} 26... Bxd5
{[%clk 0:05:50]} 27. Qxd5 {[%clk 0:24:48]} 27... Qb6 {[%clk 0:05:27]} 28. h5
{[%clk 0:22:44]} 28... Rb7 {[%clk 0:03:33]} 29. Kg2 {[%clk 0:21:12]} 29... Rc7
{[%clk 0:03:29]} 30. Qd3 {[%clk 0:20:38]} 30... Qc6 {[%clk 0:03:46]} 31. Bg4
{[%clk 0:16:53]} 31... Ra7 {[%clk 0:00:44]} 32. Re1 {[%clk 0:14:34]} 32... Qb6
{[%clk 0:00:40]} 33. Re2 {[%clk 0:14:55]} 33... Raf7 {[%clk 0:00:38]} 34. f3
{[%clk 0:09:29]} 34... Qa6 {[%clk 0:00:43]} 35. Qd5 {[%clk 0:09:00]} 35... Rf6
{[%clk 0:00:41]} 36. Ra2 {[%clk 0:09:21]} 36... Qb6 {[%clk 0:00:54]} 37. Qd3
{[%clk 0:09:29]} 37... Qb7 {[%clk 0:00:39]} 38. Ra5 {[%clk 0:09:34]} 38... Rb8
{[%clk 0:00:41]} 39. Qe3 {[%clk 0:09:50]} 39... Rf7 {[%clk 0:00:38]} 40. h6
{[%clk 0:09:26]} 40... gxh6 {[%clk 0:00:34]} 41. Qxh6 {[%clk 0:09:03]} 41... Qe7
{[%clk 0:00:46]} 42. Qd2 {[%clk 0:08:01]} 42... Rg7 {[%clk 0:00:41]} 43. Bf5
{[%clk 0:06:55]} 43... Qf6 {[%clk 0:00:32]} 44. g4 {[%clk 0:06:53]} 44... h5
{[%clk 0:00:43]} 45. Ra1 {[%clk 0:07:09]} 45... Kg8 {[%clk 0:00:40]} 46. Rh1
{[%clk 0:07:21]} 46... h4 {[%clk 0:00:47]} 47. Qd5+ {[%clk 0:07:29]} 47... Kh8
{[%clk 0:00:49]} 48. Qa2 {[%clk 0:06:13]} 48... d5 {[%clk 0:00:36]} 49. Qf2
{[%clk 0:06:05]} 49... Kg8 {[%clk 0:00:43]} 50. Rxh4 {[%clk 0:05:21]} 50... Ra8
{[%clk 0:00:39]} 51. Rh1 {[%clk 0:04:38]} 51... Qf7 {[%clk 0:00:39]} 52. Rh6
{[%clk 0:04:13]} 52... Qa7 {[%clk 0:00:44]} 53. Qh4 {[%clk 0:04:17]} 53... Qa2+
{[%clk 0:00:37]} 54. Kg3 {[%clk 0:04:39]} 54... Ra6 {[%clk 0:00:58]} 55. Qd8+
{[%clk 0:04:40]} 55... Kf7 {[%clk 0:01:22]} 56. Qd7+ {[%clk 0:05:03]} 56... Kf8
{[%clk 0:01:44]} 57. Rh8+ {[%clk 0:05:19]} 57... Rg8 {[%clk 0:02:02]} 58. Qd8+
{[%clk 0:05:43]} 1-0

[Variant "Standard"]
[Site "Europe Echecs"]

[Event "Championnat du monde jeunes U12"]
[Date "2024.11.23"]
[White "Guo, Ethan"]
[Black "Bocquenet-Drouode, Hugo"]
[WhiteElo "2157"]
[BlackElo "2002"]
[Round "8.14"]
[Result "1-0"]
[TimeControl "5400+30"]

1. e4 {[%clk 1:30:59]} 1... c5 {[%clk 1:30:55]} 2. Nf3 {[%clk 1:31:25]} 2... Nc6
{[%clk 1:31:18]} 3. d4 {[%clk 1:31:51]} 3... cxd4 {[%clk 1:31:45]} 4. Nxd4
{[%clk 1:32:15]} 4... Nf6 {[%clk 1:32:12]} 5. Nc3 {[%clk 1:32:36]} 5... d6
{[%clk 1:32:39]} 6. Be3 {[%clk 1:32:59]} 6... Ng4 {[%clk 1:32:18]} 7. Bb5 {[%clk
1:33:28]} 7... Nxe3 {[%clk 1:32:07]} 8. fxe3 {[%clk 1:33:57]} 8... Bd7 {[%clk
1:30:20]} 9. O-O {[%clk 1:34:24]} 9... e6 {[%clk 1:25:38]} 10. Bxc6 {[%clk
1:34:45]} 10... bxc6 {[%clk 1:22:07]} 11. e5 {[%clk 1:35:13]} 11... Be7 {[%clk
1:21:38]} 12. Qh5 {[%clk 1:35:25]} 12... O-O {[%clk 1:19:22]} 13. exd6 {[%clk
1:35:48]} 13... Bxd6 {[%clk 1:19:31]} 14. Rad1 {[%clk 1:36:17]} 14... g6 {[%clk
1:10:48]} 15. Qh6 {[%clk 1:31:39]} 15... Qe7 {[%clk 0:53:48]} 16. Nf3 {[%clk
1:31:00]} 16... f5 {[%clk 0:36:58]} 17. Ng5 {[%clk 1:27:33]} 17... Be5 {[%clk
0:26:11]} 18. Nxh7 {[%clk 1:22:35]} 18... Qxh7 {[%clk 0:15:33]} 19. Qxh7+ {[%clk
1:21:35]} 19... Kxh7 {[%clk 0:13:36]} 20. Rxd7+ {[%clk 1:22:03]} 20... Kg8
{[%clk 0:13:49]} 21. Na4 {[%clk 1:21:45]} 21... Rad8 {[%clk 0:11:06]} 22. Re7
{[%clk 1:11:40]} 22... Rf6 {[%clk 0:07:42]} 23. g3 {[%clk 1:09:26]} 23... Rd2
{[%clk 0:07:10]} 24. Rf2 {[%clk 1:09:41]} 24... Rd1+ {[%clk 0:07:13]} 25. Kg2
{[%clk 1:09:58]} 25... g5 {[%clk 0:05:40]} 26. Nc5 {[%clk 1:08:47]} 26... Bxb2
{[%clk 0:03:01]} 27. Rxe6 {[%clk 1:09:11]} 27... Rd5 {[%clk 0:02:28]} 28. Rxf6
{[%clk 1:09:11]} 28... Bxf6 {[%clk 0:02:53]} 29. Nb3 {[%clk 1:08:18]} 29... Kg7
{[%clk 0:00:47]} 30. Kf1 {[%clk 1:03:28]} 30... Kg6 {[%clk 0:01:01]} 31. Ke2
{[%clk 1:03:41]} 31... Bc3 {[%clk 0:01:16]} 32. Rf1 {[%clk 1:01:23]} 32... g4
{[%clk 0:01:03]} 33. Rf4 {[%clk 1:01:25]} 33... Be5 {[%clk 0:00:58]} 34. Rc4
{[%clk 1:01:43]} 34... Kg5 {[%clk 0:00:40]} 35. Rxc6 {[%clk 1:00:03]} 35... Rd8
{[%clk 0:00:41]} 36. Rc5 {[%clk 1:00:21]} 36... Bf6 {[%clk 0:01:03]} 37. e4
{[%clk 1:00:27]} 37... Rh8 {[%clk 0:01:13]} 38. Rxf5+ {[%clk 1:00:47]} 38... Kg6
{[%clk 0:01:39]} 39. Rf2 {[%clk 1:01:01]} 39... Re8 {[%clk 0:01:14]} 40. Rf4
{[%clk 1:00:58]} 40... Kg5 {[%clk 0:01:22]} 41. c4 {[%clk 1:00:53]} 41... Rh8
{[%clk 0:01:45]} 42. Rf2 {[%clk 1:01:11]} 42... Rc8 {[%clk 0:02:07]} 43. c5
{[%clk 1:01:29]} 43... a5 {[%clk 0:02:15]} 44. Rf5+ {[%clk 1:01:02]} 44... Kg6
{[%clk 0:02:36]} 45. Nxa5 {[%clk 1:01:25]} 45... Rh8 {[%clk 0:02:53]} 46. c6
{[%clk 0:52:38]} 46... Rxh2+ {[%clk 0:02:58]} 47. Rf2 {[%clk 0:53:01]} 47... Rh7
{[%clk 0:02:55]} 48. Nc4 {[%clk 0:52:21]} 48... Rc7 {[%clk 0:02:24]} 49. e5
{[%clk 0:51:03]} 49... Bg7 {[%clk 0:02:21]} 50. Rf4 {[%clk 0:51:02]} 50... Rxc6
{[%clk 0:01:32]} 51. Rxg4+ {[%clk 0:51:25]} 51... Kf7 {[%clk 0:01:45]} 52. a4
{[%clk 0:50:41]} 52... Rc5 {[%clk 0:01:39]} 53. Kd3 {[%clk 0:49:46]} 53... Bxe5
{[%clk 0:01:28]} 54. Rg5 {[%clk 0:49:27]} 54... Bd4 {[%clk 0:00:40]} 55. Rxc5
{[%clk 0:49:07]} 55... Bxc5 {[%clk 0:01:04]} 56. a5 {[%clk 0:49:27]} 56... Ke6
{[%clk 0:01:29]} 57. Ke4 {[%clk 0:49:50]} 57... Ba7 {[%clk 0:01:46]} 58. g4
{[%clk 0:50:09]} 58... Bc5 {[%clk 0:01:56]} 59. a6 {[%clk 0:50:23]} 59... Kf6
{[%clk 0:02:12]} 60. Kd5 {[%clk 0:50:19]} 60... Ba7 {[%clk 0:02:24]} 61. Kc6
{[%clk 0:50:23]} 61... Kg5 {[%clk 0:02:41]} 62. Kb7 {[%clk 0:50:46]} 62... Bd4
{[%clk 0:03:08]} 63. Nb6 {[%clk 0:51:11]} 63... Kxg4 {[%clk 0:03:33]} 64. a7
{[%clk 0:51:36]} 1-0

[Variant "Standard"]
[Site "Europe Echecs"]

[Event "Championnat du monde jeunes U12"]
[Date "2024.11.23"]
[White "Nguyen, Khoi"]
[Black "Abdsattar, Alisher"]
[WhiteElo "1994"]
[BlackElo "2082"]
[Round "8.15"]
[Result "0-1"]
[TimeControl "5400+30"]

1. c4 {[%clk 1:30:57]} 1... Nf6 {[%clk 1:30:45]} 2. Nf3 {[%clk 1:31:21]} 2... g6
{[%clk 1:31:10]} 3. Nc3 {[%clk 1:31:45]} 3... Bg7 4. e4 {[%clk 1:32:07]} 4... d6
{[%clk 1:32:02]} 5. d4 {[%clk 1:32:33]} 5... O-O {[%clk 1:32:26]} 6. Be2 {[%clk
1:33:00]} 6... e5 {[%clk 1:32:51]} 7. O-O {[%clk 1:33:25]} 7... Nc6 {[%clk
1:33:05]} 8. d5 {[%clk 1:33:52]} 8... Ne7 {[%clk 1:33:31]} 9. Ne1 {[%clk
1:34:15]} 9... Ne8 {[%clk 1:33:27]} 10. Be3 {[%clk 1:33:32]} 10... f5 {[%clk
1:33:20]} 11. f3 {[%clk 1:33:56]} 11... Kh8 {[%clk 1:33:08]} 12. c5 {[%clk
1:18:33]} 12... dxc5 {[%clk 1:31:30]} 13. Bxc5 {[%clk 1:18:17]} 13... b6 {[%clk
1:31:54]} 14. Ba3 {[%clk 1:06:34]} 14... Nd6 {[%clk 1:30:16]} 15. Rc1 {[%clk
1:02:04]} 15... Bd7 {[%clk 1:25:39]} 16. Qb3 {[%clk 0:56:45]} 16... Bh6 {[%clk
1:12:44]} 17. Rc2 {[%clk 0:56:19]} 17... a5 {[%clk 1:09:58]} 18. Nd3 {[%clk
0:35:31]} 18... b5 {[%clk 0:39:52]} 19. Bc5 {[%clk 0:25:33]} 19... b4 {[%clk
0:36:04]} 20. Nd1 {[%clk 0:24:03]} 20... Qe8 {[%clk 0:30:33]} 21. Nxe5 {[%clk
0:17:36]} 21... Ba4 {[%clk 0:29:55]} 22. Qd3 {[%clk 0:17:48]} 22... Bxc2 {[%clk
0:28:53]} 23. Qxc2 {[%clk 0:18:17]} 23... Bg7 {[%clk 0:27:01]} 24. Nc4 {[%clk
0:16:32]} 24... fxe4 {[%clk 0:26:43]} 25. fxe4 {[%clk 0:14:55]} 25... Rxf1+
{[%clk 0:26:50]} 26. Bxf1 {[%clk 0:15:17]} 26... Nxc4 {[%clk 0:27:04]} 27. Bxc4
{[%clk 0:13:48]} 27... Nc8 {[%clk 0:26:41]} 28. Nf2 {[%clk 0:12:42]} 28... Nd6
{[%clk 0:26:52]} 29. Bd3 {[%clk 0:13:04]} 29... Qe5 {[%clk 0:27:06]} 0-1

[Variant "Standard"]
[Site "Europe Echecs"]

[Event "Championnat du monde jeunes U12"]
[Date "2024.11.23"]
[White "Filindash, Nikita"]
[Black "Antipov, Fedor"]
[WhiteElo "2076"]
[BlackElo "1991"]
[Round "8.16"]
[Result "0-1"]
[TimeControl "5400+30"]

1. d4 {[%clk 1:30:57]} 1... Nf6 {[%clk 1:30:57]} 2. c4 {[%clk 1:31:21]} 2... e6
{[%clk 1:31:24]} 3. Nc3 {[%clk 1:31:45]} 3... Bb4 {[%clk 1:31:51]} 4. e3 {[%clk
1:32:10]} 4... O-O {[%clk 1:32:18]} 5. Bd2 {[%clk 1:32:33]} 5... b6 {[%clk
1:32:35]} 6. Nf3 {[%clk 1:32:58]} 6... d5 {[%clk 1:32:48]} 7. cxd5 {[%clk
1:33:26]} 7... exd5 {[%clk 1:32:57]} 8. Rc1 {[%clk 1:33:52]} 8... Bb7 {[%clk
1:33:01]} 9. Bd3 {[%clk 1:34:21]} 9... Re8 {[%clk 1:32:58]} 10. O-O {[%clk
1:34:22]} 10... Bf8 {[%clk 1:32:55]} 11. Ne5 {[%clk 1:32:56]} 11... c5 {[%clk
1:32:52]} 12. Be1 {[%clk 1:26:56]} 12... Nc6 {[%clk 1:27:00]} 13. f4 {[%clk
1:20:58]} 13... Rc8 {[%clk 1:07:48]} 14. Bh4 {[%clk 1:17:41]} 14... cxd4 {[%clk
0:58:05]} 15. Nxc6 {[%clk 1:17:55]} 15... Bxc6 {[%clk 0:55:13]} 16. exd4 {[%clk
1:18:21]} 16... Qd6 {[%clk 0:49:40]} 17. Bxf6 {[%clk 0:34:22]} 17... Qxf6 {[%clk
0:49:55]} 18. Bb1 {[%clk 0:33:59]} 18... g6 {[%clk 0:39:52]} 19. Qd3 {[%clk
0:34:04]} 19... Bg7 {[%clk 0:39:32]} 20. Rcd1 {[%clk 0:32:46]} 20... Rc7 {[%clk
0:26:13]} 21. Qf3 {[%clk 0:28:52]} 21... Qe6 {[%clk 0:25:12]} 22. Kh1 {[%clk
0:20:55]} 22... Qe3 {[%clk 0:22:19]} 23. Qg4 {[%clk 0:13:51]} 23... Bxd4 {[%clk
0:16:19]} 24. Rd3 {[%clk 0:13:14]} 24... Qf2 {[%clk 0:13:16]} 25. Qd1 {[%clk
0:06:27]} 25... Qxb2 {[%clk 0:12:18]} 26. Na4 {[%clk 0:05:00]} 26... Bxa4 {[%clk
0:11:05]} 27. Qxa4 {[%clk 0:05:28]} 27... Qe2 {[%clk 0:10:03]} 28. Qd1 {[%clk
0:05:05]} 28... Qxd1 {[%clk 0:09:51]} 29. Rfxd1 {[%clk 0:05:34]} 29... Rce7
{[%clk 0:09:51]} 30. g3 {[%clk 0:04:27]} 30... Re1+ {[%clk 0:09:24]} 31. Kg2
{[%clk 0:04:56]} 31... R8e2+ {[%clk 0:08:30]} 32. Kf3 {[%clk 0:04:16]} 32...
Rf2+ {[%clk 0:07:31]} 33. Kg4 {[%clk 0:04:44]} 33... h5+ {[%clk 0:07:47]} 34.
Kh3 Ree2 35. Rh1 0-1

[Variant "Standard"]
[Site "Europe Echecs"]

[Event "Championnat du monde jeunes U12"]
[Date "2024.11.23"]
[White "Fulgentini, Edoardo"]
[Black "Zhang, Haoxuan"]
[WhiteElo "2075"]
[BlackElo "1932"]
[Round "8.17"]
[Result "1/2-1/2"]
[TimeControl "5400+30"]

1. e4 {[%clk 1:30:58]} 1... e5 {[%clk 1:30:41]} 2. Nf3 {[%clk 1:31:17]} 2... Nc6
{[%clk 1:30:58]} 3. Bb5 {[%clk 1:31:31]} 3... a6 {[%clk 1:31:02]} 4. Ba4 {[%clk
1:31:57]} 4... b5 {[%clk 1:30:50]} 5. Bb3 {[%clk 1:32:18]} 5... Bc5 {[%clk
1:31:07]} 6. O-O {[%clk 1:32:14]} 6... Nf6 {[%clk 1:30:42]} 7. Nxe5 {[%clk
1:31:55]} 7... Nxe5 {[%clk 1:30:28]} 8. d4 {[%clk 1:32:21]} 8... Bxd4 {[%clk
1:28:17]} 9. Qxd4 {[%clk 1:32:46]} 9... d6 {[%clk 1:28:39]} 10. f4 {[%clk
1:33:07]} 10... c5 {[%clk 1:27:01]} 11. Qd2 {[%clk 1:33:29]} 11... Ng6 {[%clk
1:22:20]} 12. Bd5 {[%clk 1:33:48]} 12... Nxd5 {[%clk 1:20:15]} 13. Qxd5 {[%clk
1:34:17]} 13... Rb8 {[%clk 1:19:36]} 14. Rd1 {[%clk 1:13:07]} 14... Rb6 {[%clk
1:10:52]} 15. Be3 {[%clk 1:08:32]} 15... Bb7 {[%clk 1:07:56]} 16. Qd3 {[%clk
1:07:30]} 16... Qc8 {[%clk 0:48:58]} 17. Nc3 {[%clk 1:03:33]} 17... O-O {[%clk
0:45:48]} 18. h3 {[%clk 0:50:18]} 18... b4 {[%clk 0:38:14]} 19. Nd5 {[%clk
0:46:10]} 19... Bxd5 {[%clk 0:38:37]} 20. Qxd5 {[%clk 0:46:13]} 20... Re8 {[%clk
0:37:57]} 21. f5 {[%clk 0:33:33]} 21... Ne5 {[%clk 0:37:46]} 22. Bf4 {[%clk
0:32:03]} 22... h6 {[%clk 0:34:33]} 23. Rd2 {[%clk 0:30:08]} 23... Qc7 {[%clk
0:33:04]} 24. Rad1 {[%clk 0:28:06]} 24... Kh7 {[%clk 0:32:19]} 25. Qb3 {[%clk
0:27:03]} 25... Re7 {[%clk 0:22:18]} 26. f6 {[%clk 0:23:03]} 26... gxf6 {[%clk
0:21:54]} 27. Rd5 {[%clk 0:22:36]} 27... Qb8 {[%clk 0:20:22]} 28. Rf1 {[%clk
0:15:15]} 28... Qg8 {[%clk 0:18:21]} 29. Bc1 {[%clk 0:14:40]} 29... Re6 {[%clk
0:17:04]} 30. Qe3 {[%clk 0:13:56]} 30... Qg7 {[%clk 0:15:12]} 31. Rf5 {[%clk
0:13:05]} 31... Qg6 {[%clk 0:13:58]} 32. Qe2 {[%clk 0:12:31]} 32... Nc6 {[%clk
0:13:25]} 33. Rf4 {[%clk 0:09:41]} 33... Nd4 {[%clk 0:12:34]} 34. Rxd4 {[%clk
0:08:37]} 34... cxd4 {[%clk 0:12:58]} 35. Rg4 {[%clk 0:09:04]} 35... Qf5 {[%clk
0:12:56]} 36. Qd2 {[%clk 0:07:27]} 36... Qh5 {[%clk 0:13:19]} 37. Qf4 {[%clk
0:05:52]} 37... Rb5 {[%clk 0:12:49]} 38. Qg3 {[%clk 0:04:23]} 38... Rg5 {[%clk
0:12:45]} 39. Bxg5 {[%clk 0:04:28]} 39... fxg5 {[%clk 0:13:01]} 40. Qd3 {[%clk
0:04:15]} 40... Qg6 {[%clk 0:13:25]} 41. Qxd4 {[%clk 0:03:58]} 41... h5 {[%clk
0:13:34]} 42. Rg3 {[%clk 0:03:49]} 42... Rxe4 {[%clk 0:13:37]} 43. Qd2 {[%clk
0:03:08]} 43... Re5 {[%clk 0:12:23]} 44. Rd3 {[%clk 0:02:06]} 44... Qe4 {[%clk
0:11:30]} 45. Rxd6 {[%clk 0:01:27]} 45... Qe1+ {[%clk 0:11:48]} 46. Kh2 {[%clk
0:01:07]} 46... Qxd2 {[%clk 0:12:13]} 47. Rxd2 {[%clk 0:01:34]} 47... Rc5 {[%clk
0:12:17]} 48. Kg3 {[%clk 0:01:33]} 48... a5 {[%clk 0:12:30]} 49. Kf3 {[%clk
0:01:42]} 49... Kg6 {[%clk 0:12:33]} 50. Ke4 {[%clk 0:01:44]} 50... Rc8 {[%clk
0:12:37]} 51. Rf2 {[%clk 0:01:35]} 51... Re8+ {[%clk 0:10:57]} 52. Kd4 {[%clk
0:01:54]} 52... f5 {[%clk 0:09:43]} 53. c4 {[%clk 0:01:14]} 53... bxc3 {[%clk
0:09:58]} 54. bxc3 {[%clk 0:01:15]} 54... Rd8+ {[%clk 0:10:21]} 55. Ke5 {[%clk
0:01:26]} 55... Re8+ {[%clk 0:09:53]} 56. Kd6 {[%clk 0:01:29]} 56... Kf6 {[%clk
0:09:22]} 57. c4 {[%clk 0:01:16]} 57... Re6+ {[%clk 0:09:39]} 58. Kd5 {[%clk
0:01:29]} 58... Re5+ {[%clk 0:10:02]} 59. Kc6 {[%clk 0:01:54]} 59... h4 {[%clk
0:09:37]} 60. c5 {[%clk 0:02:06]} 60... Ke6 {[%clk 0:09:59]} 61. Rd2 {[%clk
0:02:02]} 61... g4 {[%clk 0:10:08]} 62. hxg4 {[%clk 0:00:56]} 62... fxg4 {[%clk
0:10:08]} 63. Kb6 {[%clk 0:01:23]} 63... Rd5 {[%clk 0:09:50]} 64. Re2+ {[%clk
0:00:59]} 64... Re5 {[%clk 0:10:06]} 65. Rd2 {[%clk 0:00:50]} 65... Rd5 {[%clk
0:10:30]} 66. Rxd5 {[%clk 0:00:34]} 66... Kxd5 {[%clk 0:10:55]} 67. c6 {[%clk
0:01:03]} 67... h3 {[%clk 0:11:19]} 68. gxh3 {[%clk 0:01:31]} 68... g3 {[%clk
0:11:44]} 69. c7 {[%clk 0:01:47]} 69... g2 {[%clk 0:12:08]} 70. c8=Q {[%clk
0:02:06]} 70... g1=Q+ {[%clk 0:12:32]} 71. Kxa5 {[%clk 0:02:18]} 71... Qe1+
{[%clk 0:12:29]} 72. Ka6 {[%clk 0:01:54]} 72... Qe2+ {[%clk 0:12:44]} 73. Kb7
{[%clk 0:02:12]} 73... Qb2+ {[%clk 0:12:55]} 74. Kc7 {[%clk 0:02:16]} 74... Qc2+
{[%clk 0:13:06]} 75. Kb8 {[%clk 0:02:17]} 75... Qh2+ {[%clk 0:13:24]} 76. Qc7
{[%clk 0:02:16]} 76... Qxh3 {[%clk 0:13:41]} 77. a4 {[%clk 0:02:13]} 77... Qh8+
{[%clk 0:13:19]} 78. Kb7 {[%clk 0:02:09]} 78... Qb2+ {[%clk 0:12:55]} 79. Qb6
{[%clk 0:02:21]} 79... Qg7+ {[%clk 0:12:56]} 80. Kb8 {[%clk 0:01:55]} 80... Qe5+
{[%clk 0:12:25]} 81. Ka7 {[%clk 0:02:15]} 81... Kc4 {[%clk 0:12:12]} 82. a5
{[%clk 0:01:06]} 82... Qe7+ {[%clk 0:12:08]} 83. Ka6 {[%clk 0:01:17]} 83... Qd7
{[%clk 0:11:54]} 84. Qb7 {[%clk 0:00:40]} 84... Qd6+ {[%clk 0:12:14]} 85. Ka7
{[%clk 0:00:39]} 85... Qd4+ {[%clk 0:12:08]} 86. Qb6 {[%clk 0:00:51]} 86... Qd7+
{[%clk 0:12:21]} 87. Ka6 {[%clk 0:00:44]} 87... Qc8+ {[%clk 0:12:16]} 88. Qb7
{[%clk 0:00:49]} 88... Qe6+ {[%clk 0:12:41]} 89. Ka7 {[%clk 0:00:58]} 89... Qe3+
{[%clk 0:13:04]} 90. Qb6 {[%clk 0:01:15]} 90... Qe7+ {[%clk 0:13:26]} 91. Ka6
{[%clk 0:01:30]} 91... Qd7 {[%clk 0:13:50]} 92. Qb8 {[%clk 0:00:38]} 92... Qe6+
{[%clk 0:13:10]} 93. Ka7 {[%clk 0:00:32]} 93... Qd7+ {[%clk 0:13:25]} 94. Qb7
{[%clk 0:00:33]} 94... Qd4+ {[%clk 0:13:49]} 95. Ka6 {[%clk 0:00:42]} 95... Qd6+
{[%clk 0:14:14]} 96. Qb6 {[%clk 0:00:49]} 96... Qd7 {[%clk 0:14:39]} 97. Qb2
{[%clk 0:00:44]} 97... Qc6+ {[%clk 0:14:52]} 98. Qb6 {[%clk 0:01:05]} 98... Qa8+
{[%clk 0:15:17]} 1/2-1/2

[Variant "Standard"]
[Site "Europe Echecs"]

[Event "Championnat du monde jeunes U12"]
[Date "2024.11.23"]
[White "Yerzhanuly Yernur"]
[Black "Baturin-Vinogradov, Miroslav"]
[WhiteElo "1917"]
[BlackElo "2048"]
[Round "8.18"]
[Result "1/2-1/2"]
[TimeControl "5400+30"]

1. d4 {[%clk 1:30:56]} 1... d5 {[%clk 1:30:08]} 2. Bf4 {[%clk 1:31:14]} 2... Nf6
{[%clk 1:30:31]} 3. e3 {[%clk 1:31:38]} 3... e6 {[%clk 1:30:53]} 4. Nd2 {[%clk
1:31:16]} 4... c5 {[%clk 1:30:36]} 5. c3 {[%clk 1:30:56]} 5... Bd6 {[%clk
1:30:38]} 6. Bg3 {[%clk 1:29:20]} 6... Qc7 {[%clk 1:30:11]} 7. dxc5 {[%clk
1:29:01]} 7... Bxg3 {[%clk 1:27:25]} 8. hxg3 {[%clk 1:29:28]} 8... Qxc5 {[%clk
1:27:46]} 9. Ngf3 {[%clk 1:28:55]} 9... Nbd7 {[%clk 1:27:03]} 10. Bd3 {[%clk
1:27:26]} 10... b6 {[%clk 1:18:53]} 11. Qe2 {[%clk 1:24:16]} 11... Bb7 {[%clk
1:16:42]} 12. e4 {[%clk 1:18:29]} 12... dxe4 {[%clk 1:11:45]} 13. Nxe4 {[%clk
1:16:05]} 13... Bxe4 {[%clk 1:09:12]} 14. Bxe4 {[%clk 1:16:27]} 14... Rc8 {[%clk
0:54:10]} 15. O-O-O {[%clk 1:12:38]} 15... g6 {[%clk 0:39:16]} 16. g4 {[%clk
1:07:27]} 16... Qc4 {[%clk 0:31:16]} 17. Qxc4 {[%clk 1:06:33]} 17... Rxc4 {[%clk
0:31:34]} 18. Bd3 {[%clk 1:07:01]} 18... Rc5 {[%clk 0:21:41]} 19. g5 {[%clk
1:03:23]} 19... Ng4 {[%clk 0:21:00]} 20. Rd2 {[%clk 1:01:10]} 20... Nge5 {[%clk
0:14:43]} 21. Nxe5 {[%clk 1:00:54]} 21... Nxe5 {[%clk 0:15:05]} 22. Be2 {[%clk
1:00:46]} 22... O-O {[%clk 0:08:08]} 23. f4 {[%clk 0:58:54]} 23... Nc6 {[%clk
0:05:33]} 24. Rd3 {[%clk 0:55:36]} 24... e5 {[%clk 0:03:58]} 25. Rdh3 {[%clk
0:51:44]} 25... h5 {[%clk 0:04:19]} 26. f5 {[%clk 0:50:29]} 26... e4 {[%clk
0:03:39]} 27. g4 {[%clk 0:50:02]} 27... Nd4 {[%clk 0:02:17]} 28. Bd1 {[%clk
0:50:06]} 28... gxf5 {[%clk 0:01:50]} 29. Rxh5 {[%clk 0:49:02]} 29... Ne6 {[%clk
0:01:20]} 30. gxf5 {[%clk 0:47:57]} 30... Rxf5 {[%clk 0:01:29]} 31. Bb3 {[%clk
0:48:26]} 31... Nc5 {[%clk 0:00:36]} 32. Bc2 {[%clk 0:48:03]} 32... Nd3+ {[%clk
0:00:48]} 33. Bxd3 {[%clk 0:45:39]} 33... exd3 {[%clk 0:01:16]} 34. Rh8+ {[%clk
0:44:37]} 34... Kg7 {[%clk 0:00:52]} 35. R1h7+ {[%clk 0:44:39]} 35... Kg6 {[%clk
0:01:20]} 36. Rh6+ {[%clk 0:44:30]} 36... Kxg5 {[%clk 0:00:48]} 37. Rh5+ {[%clk
0:44:54]} 37... Kg6 {[%clk 0:01:03]} 38. R5h6+ {[%clk 0:45:17]} 38... Kg5 {[%clk
0:01:03]} 39. Rh5+ {[%clk 0:45:40]} 39... Kg6 {[%clk 0:01:00]} 1/2-1/2

[Variant "Standard"]
[Site "Europe Echecs"]